[Event "Titled Tuesday Blitz August 10 2021"]
[White "Andreikin, Dmitry"]
[Black "Jobava, Baadur"]
[WhiteFideId "4158814"]
[BlackFideId "13601520"]
[WhiteElo "2782"]
[BlackElo "2748"]
[Result "1-0"]
[Round "08"]
[TimeControl "180+1"]
[Date "2021.08.10"]
[WhiteClock "0:00:19"]
[BlackClock "0:00:23"]

1. Nf3 {[%clk 0:03:00]}  c6 {[%clk 0:03:00]} 2. e4 {[%clk 0:02:56]}  d5 {[%clk 0:03:01]} 3. d3 {[%clk 0:02:56]}  Bg4 {[%clk 0:03:01]} 4. h3 {[%clk 0:02:55]}  Bxf3 {[%clk 0:03:01]} 5. Qxf3 {[%clk 0:02:55]}  e6 {[%clk 0:03:02]} 6. g3 {[%clk 0:02:54]}  Nd7 {[%clk 0:03:02]} 7. Bg2 {[%clk 0:02:54]}  g6 {[%clk 0:03:02]} 8. O-O {[%clk 0:02:50]}  Bg7 {[%clk 0:03:02]} 9. Nd2 {[%clk 0:02:48]}  Ne7 {[%clk 0:03:02]} 10. Qe2 {[%clk 0:02:47]}  O-O {[%clk 0:03:02]} 11. h4 {[%clk 0:02:47]}  a5 {[%clk 0:03:01]} 12. h5 {[%clk 0:02:47]}  a4 {[%clk 0:03:02]} 13. a3 {[%clk 0:02:43]}  Qb6 {[%clk 0:02:50]} 14. Nf3 {[%clk 0:02:40]}  dxe4 {[%clk 0:02:49]} 15. dxe4 {[%clk 0:02:38]}  Qa6 {[%clk 0:02:45]} 16. Qd2 {[%clk 0:02:27]}  Rad8 {[%clk 0:02:40]} 17. hxg6 {[%clk 0:02:27]}  hxg6 {[%clk 0:02:40]} 18. Qg5 {[%clk 0:02:25]}  Bf6 {[%clk 0:02:40]} 19. Qh6 {[%clk 0:02:24]}  Bg7 {[%clk 0:02:29]} 20. Qh4 {[%clk 0:02:24]}  f6 {[%clk 0:02:29]} 21. Bh3 {[%clk 0:02:15]}  c5 {[%clk 0:01:54]} 22. Be3 {[%clk 0:02:08]}  Qc6 {[%clk 0:01:39]} 23. Rad1 {[%clk 0:01:54]}  Nb6 {[%clk 0:01:29]} 24. Ne5 {[%clk 0:01:47]}  fxe5 {[%clk 0:01:14]} 25. Qxe7 {[%clk 0:01:47]}  Rde8 {[%clk 0:01:14]} 26. Qxc5 {[%clk 0:01:45]}  Nc4 {[%clk 0:01:12]} 27. Qxc6 {[%clk 0:01:42]}  bxc6 {[%clk 0:01:13]} 28. Bc5 {[%clk 0:01:40]}  Rf7 {[%clk 0:01:12]} 29. b3 {[%clk 0:01:40]}  axb3 {[%clk 0:01:09]} 30. cxb3 {[%clk 0:01:41]}  Na5 {[%clk 0:01:08]} 31. b4 {[%clk 0:01:36]}  Nb3 {[%clk 0:01:07]} 32. Rd6 {[%clk 0:01:32]}  Nxc5 {[%clk 0:00:57]} 33. bxc5 {[%clk 0:01:33]}  Rc7 {[%clk 0:00:57]} 34. Bxe6+ {[%clk 0:01:30]}  Kh7 {[%clk 0:00:56]} 35. Bd7 {[%clk 0:00:48]}  Rd8 {[%clk 0:00:51]} 36. Bf5 {[%clk 0:00:39]}  Rxd6 {[%clk 0:00:37]} 37. cxd6 {[%clk 0:00:40]}  Ra7 {[%clk 0:00:38]} 38. Be6 {[%clk 0:00:38]}  Rxa3 {[%clk 0:00:36]} 39. Rd1 {[%clk 0:00:35]}  Bf6 {[%clk 0:00:35]} 40. d7 {[%clk 0:00:34]}  Bd8 {[%clk 0:00:35]} 41. Rd6 {[%clk 0:00:33]}  Rc3 {[%clk 0:00:33]} 42. Bf7 {[%clk 0:00:31]}  Kg7 {[%clk 0:00:31]} 43. Bxg6 {[%clk 0:00:28]}  Kf8 {[%clk 0:00:28]} 44. Re6 {[%clk 0:00:23]}  Be7 {[%clk 0:00:29]} 45. Rxe5 {[%clk 0:00:20]}  Rd3 {[%clk 0:00:28]} 46. Bf5 {[%clk 0:00:19]}  c5 {[%clk 0:00:26]} 47. Rd5 {[%clk 0:00:18]}  Rxd5 {[%clk 0:00:23]} 48. exd5 {[%clk 0:00:19]} 1-0


[Site "https://www.chess.com"]

[Event "Titled Tuesday Blitz August 10 2021"]
[White "Assaubayeva, Bibisara"]
[Black "Sychev, Klementy"]
[WhiteFideId "13708694"]
[BlackFideId "4114060"]
[WhiteElo "2232"]
[BlackElo "2615"]
[Result "0-1"]
[Round "08"]
[TimeControl "180+1"]
[Date "2021.08.10"]
[WhiteClock "0:00:16"]
[BlackClock "0:01:04"]

1. d4 {[%clk 0:03:00]}  Nf6 {[%clk 0:02:58]} 2. c4 {[%clk 0:03:01]}  e6 {[%clk 0:02:58]} 3. Nf3 {[%clk 0:03:01]}  d5 {[%clk 0:02:57]} 4. Nc3 {[%clk 0:03:00]}  Ne4 {[%clk 0:02:58]} 5. Qc2 {[%clk 0:02:58]}  Nxc3 {[%clk 0:02:57]} 6. Qxc3 {[%clk 0:02:58]}  a5 {[%clk 0:02:58]} 7. a3 {[%clk 0:02:57]}  Bb4 {[%clk 0:02:57]} 8. axb4 {[%clk 0:02:54]}  axb4 {[%clk 0:02:57]} 9. Rxa8 {[%clk 0:02:52]}  bxc3 {[%clk 0:02:57]} 10. Rxb8 {[%clk 0:02:53]}  cxb2 {[%clk 0:02:54]} 11. Bxb2 {[%clk 0:02:53]}  O-O {[%clk 0:02:55]} 12. e3 {[%clk 0:02:43]}  dxc4 {[%clk 0:02:54]} 13. Bxc4 {[%clk 0:02:40]}  Qd6 {[%clk 0:02:54]} 14. Bc3 {[%clk 0:02:13]}  Qa3 {[%clk 0:02:26]} 15. Kd2 {[%clk 0:02:01]}  Qa7 {[%clk 0:02:25]} 16. Rxc8 {[%clk 0:01:57]}  Rxc8 {[%clk 0:02:25]} 17. Ra1 {[%clk 0:01:57]}  Qb6 {[%clk 0:02:22]} 18. Ke2 {[%clk 0:01:49]}  Qc6 {[%clk 0:02:13]} 19. Ne5 {[%clk 0:01:38]}  Qxg2 {[%clk 0:02:12]} 20. Rb1 {[%clk 0:01:25]}  c5 {[%clk 0:01:59]} 21. Bd3 {[%clk 0:01:11]}  f6 {[%clk 0:01:23]} 22. Nf3 {[%clk 0:01:06]}  cxd4 {[%clk 0:01:23]} 23. Bxd4 {[%clk 0:00:57]}  e5 {[%clk 0:01:22]} 24. Ba1 {[%clk 0:00:46]}  Qg4 {[%clk 0:01:19]} 25. e4 {[%clk 0:00:41]}  Ra8 {[%clk 0:01:14]} 26. Bc3 {[%clk 0:00:26]}  f5 {[%clk 0:01:13]} 27. Rg1 {[%clk 0:00:20]}  Ra2+ {[%clk 0:01:10]} 28. Bd2 {[%clk 0:00:20]}  Rxd2+ {[%clk 0:01:06]} 29. Kxd2 {[%clk 0:00:20]}  Qxf3 {[%clk 0:01:07]} 30. Rf1 {[%clk 0:00:16]}  fxe4 {[%clk 0:01:05]} 31. Bc4+ {[%clk 0:00:16]}  Kf8 {[%clk 0:01:05]} 32. Ra1 {[%clk 0:00:16]}  Qxf2+ {[%clk 0:01:04]} 0-1


[Site "https://www.chess.com"]

[Event "Titled Tuesday Blitz August 10 2021"]
[White "Erdogdu, Mert"]
[Black "Ibarra Jerez, Jose Carlos"]
[WhiteFideId "6301495"]
[BlackFideId "2226332"]
[WhiteElo "2485"]
[BlackElo "2602"]
[Result "1/2-1/2"]
[Round "08"]
[TimeControl "180+1"]
[Date "2021.08.10"]
[WhiteClock "0:00:25"]
[BlackClock "0:00:24"]

1. e4 {[%clk 0:03:00]}  c5 {[%clk 0:02:57]} 2. Nf3 {[%clk 0:03:00]}  Nf6 {[%clk 0:02:56]} 3. e5 {[%clk 0:02:59]}  Nd5 {[%clk 0:02:57]} 4. Nc3 {[%clk 0:02:59]}  e6 {[%clk 0:02:57]} 5. Nxd5 {[%clk 0:02:57]}  exd5 {[%clk 0:02:58]} 6. d4 {[%clk 0:02:58]}  Nc6 {[%clk 0:02:58]} 7. dxc5 {[%clk 0:02:58]}  Bxc5 {[%clk 0:02:58]} 8. Qxd5 {[%clk 0:02:59]}  Qb6 {[%clk 0:02:57]} 9. Bc4 {[%clk 0:02:59]}  Bxf2+ {[%clk 0:02:57]} 10. Ke2 {[%clk 0:02:59]}  O-O {[%clk 0:02:57]} 11. Rf1 {[%clk 0:02:59]}  Bc5 {[%clk 0:02:57]} 12. Ng5 {[%clk 0:02:58]}  Nxe5 {[%clk 0:02:54]} 13. Nxf7 {[%clk 0:02:57]}  Nxf7 {[%clk 0:02:52]} 14. Rxf7 {[%clk 0:02:57]}  Qe6+ {[%clk 0:02:52]} 15. Qxe6 {[%clk 0:02:58]}  dxe6 {[%clk 0:02:53]} 16. Rxf8+ {[%clk 0:02:54]}  Kxf8 {[%clk 0:02:53]} 17. Bg5 {[%clk 0:02:48]}  Bd7 {[%clk 0:02:49]} 18. Rf1+ {[%clk 0:02:44]}  Ke8 {[%clk 0:02:45]} 19. Be3 {[%clk 0:02:31]}  Bxe3 {[%clk 0:02:32]} 20. Kxe3 {[%clk 0:02:31]}  Ke7 {[%clk 0:02:31]} 21. Bd3 {[%clk 0:02:06]}  h6 {[%clk 0:02:14]} 22. Be4 {[%clk 0:02:02]}  Rc8 {[%clk 0:02:11]} 23. c3 {[%clk 0:01:59]}  b5 {[%clk 0:01:53]} 24. Bg6 {[%clk 0:01:38]}  Be8 {[%clk 0:01:21]} 25. Bxe8 {[%clk 0:01:37]}  Kxe8 {[%clk 0:01:20]} 26. Rf4 {[%clk 0:01:37]}  Ke7 {[%clk 0:01:18]} 27. Rb4 {[%clk 0:01:36]}  Rc5 {[%clk 0:01:17]} 28. a4 {[%clk 0:01:36]}  a6 {[%clk 0:01:15]} 29. axb5 {[%clk 0:01:35]}  axb5 {[%clk 0:01:15]} 30. Rg4 {[%clk 0:01:34]}  g5 {[%clk 0:01:14]} 31. Rd4 {[%clk 0:01:19]}  Re5+ {[%clk 0:01:10]} 32. Re4 {[%clk 0:01:19]}  Rf5 {[%clk 0:01:06]} 33. g4 {[%clk 0:01:10]}  Rc5 {[%clk 0:00:57]} 34. Kd3 {[%clk 0:01:00]}  e5 {[%clk 0:00:43]} 35. Re3 {[%clk 0:00:56]}  Ke6 {[%clk 0:00:39]} 36. Rh3 {[%clk 0:00:55]}  Rc4 {[%clk 0:00:33]} 37. Rxh6+ {[%clk 0:00:54]}  Kd5 {[%clk 0:00:33]} 38. h3 {[%clk 0:00:52]}  Rf4 {[%clk 0:00:32]} 39. Ke3 {[%clk 0:00:50]}  e4 {[%clk 0:00:30]} 40. Rh5 {[%clk 0:00:46]}  Rf3+ {[%clk 0:00:30]} 41. Ke2 {[%clk 0:00:47]}  Kc4 {[%clk 0:00:29]} 42. Rxg5 {[%clk 0:00:46]}  Rxh3 {[%clk 0:00:29]} 43. b3+ {[%clk 0:00:30]}  Kxb3 {[%clk 0:00:26]} 44. Rxb5+ {[%clk 0:00:30]}  Kxc3 {[%clk 0:00:27]} 45. Rd5 {[%clk 0:00:28]}  Kc4 {[%clk 0:00:25]} 46. Rd7 {[%clk 0:00:28]}  Rg3 {[%clk 0:00:24]} 47. g5 {[%clk 0:00:25]}  Rxg5 {[%clk 0:00:23]} 48. Ke3 {[%clk 0:00:25]}  Rg4 {[%clk 0:00:23]} 49. Rd4+ {[%clk 0:00:24]}  Kc5 {[%clk 0:00:23]} 50. Rxe4 {[%clk 0:00:24]}  Rxe4+ {[%clk 0:00:24]} 51. Kxe4 {[%clk 0:00:25]} 1/2-1/2


[Site "https://www.chess.com"]

[Event "Titled Tuesday Blitz August 10 2021"]
[White "Lintchevski, Daniil"]
[Black "Costachi, Mihnea"]
[WhiteFideId "4171055"]
[BlackFideId "1217518"]
[WhiteElo "2494"]
[BlackElo "2482"]
[Result "1/2-1/2"]
[Round "08"]
[TimeControl "180+1"]
[Date "2021.08.10"]
[WhiteClock "0:00:22"]
[BlackClock "0:00:18"]

1. e4 {[%clk 0:03:00]}  e5 {[%clk 0:02:58]} 2. Nf3 {[%clk 0:03:00]}  Nc6 {[%clk 0:02:59]} 3. d4 {[%clk 0:03:01]}  exd4 {[%clk 0:02:59]} 4. Nxd4 {[%clk 0:03:02]}  Nf6 {[%clk 0:02:59]} 5. Nxc6 {[%clk 0:03:02]}  bxc6 {[%clk 0:03:00]} 6. Nd2 {[%clk 0:03:03]}  d5 {[%clk 0:02:56]} 7. exd5 {[%clk 0:03:04]}  cxd5 {[%clk 0:02:56]} 8. Bb5+ {[%clk 0:03:04]}  Bd7 {[%clk 0:02:55]} 9. Bxd7+ {[%clk 0:03:05]}  Qxd7 {[%clk 0:02:56]} 10. O-O {[%clk 0:03:06]}  Be7 {[%clk 0:02:57]} 11. b3 {[%clk 0:03:06]}  O-O {[%clk 0:02:56]} 12. Qf3 {[%clk 0:03:07]}  Bb4 {[%clk 0:02:51]} 13. c3 {[%clk 0:03:04]}  Bd6 {[%clk 0:02:45]} 14. h3 {[%clk 0:02:52]}  Rfe8 {[%clk 0:02:44]} 15. Bb2 {[%clk 0:02:51]}  Re6 {[%clk 0:02:39]} 16. c4 {[%clk 0:02:46]}  Be5 {[%clk 0:02:38]} 17. Bxe5 {[%clk 0:02:41]}  Rxe5 {[%clk 0:02:39]} 18. cxd5 {[%clk 0:02:37]}  Qxd5 {[%clk 0:02:40]} 19. Rfd1 {[%clk 0:02:25]}  Qxf3 {[%clk 0:02:31]} 20. Nxf3 {[%clk 0:02:25]}  Re2 {[%clk 0:02:32]} 21. Nd4 {[%clk 0:02:15]}  Rb2 {[%clk 0:02:24]} 22. Nb5 {[%clk 0:01:46]}  h5 {[%clk 0:02:23]} 23. Nxc7 {[%clk 0:01:34]}  Rc8 {[%clk 0:02:22]} 24. Rdc1 {[%clk 0:01:22]}  Ne4 {[%clk 0:02:22]} 25. f3 {[%clk 0:01:17]}  Ng3 {[%clk 0:02:18]} 26. Rc4 {[%clk 0:01:16]}  Ne2+ {[%clk 0:01:56]} 27. Kh2 {[%clk 0:01:13]}  Nf4 {[%clk 0:01:47]} 28. Rg1 {[%clk 0:01:06]}  Rxa2 {[%clk 0:01:41]} 29. h4 {[%clk 0:00:56]}  Rb2 {[%clk 0:01:37]} 30. Rxf4 {[%clk 0:00:46]}  Rxc7 {[%clk 0:01:36]} 31. b4 {[%clk 0:00:47]}  Rcc2 {[%clk 0:01:30]} 32. Re4 {[%clk 0:00:41]}  g6 {[%clk 0:01:30]} 33. Kg3 {[%clk 0:00:39]}  Kf8 {[%clk 0:01:26]} 34. Rd4 {[%clk 0:00:37]}  Ke7 {[%clk 0:01:24]} 35. Re1+ {[%clk 0:00:36]}  Kf6 {[%clk 0:01:24]} 36. Rg1 {[%clk 0:00:36]}  Ra2 {[%clk 0:01:13]} 37. Rf4+ {[%clk 0:00:35]}  Kg7 {[%clk 0:01:12]} 38. Re4 {[%clk 0:00:35]}  Rcb2 {[%clk 0:01:12]} 39. Kh3 {[%clk 0:00:29]}  Ra4 {[%clk 0:01:12]} 40. Rd1 {[%clk 0:00:27]}  Rbxb4 {[%clk 0:01:12]} 41. Rxb4 {[%clk 0:00:28]}  Rxb4 {[%clk 0:01:13]} 42. Rd7 {[%clk 0:00:28]}  Ra4 {[%clk 0:01:13]} 43. g4 {[%clk 0:00:26]}  hxg4+ {[%clk 0:01:10]} 44. fxg4 {[%clk 0:00:27]}  Ra3+ {[%clk 0:01:11]} 45. Kg2 {[%clk 0:00:27]}  Kf6 {[%clk 0:01:08]} 46. Rb7 {[%clk 0:00:27]}  Ke6 {[%clk 0:01:06]} 47. h5 {[%clk 0:00:25]}  gxh5 {[%clk 0:00:31]} 48. gxh5 {[%clk 0:00:26]}  Ra5 {[%clk 0:00:20]} 49. h6 {[%clk 0:00:24]}  Kf6 {[%clk 0:00:19]} 50. h7 {[%clk 0:00:21]}  Rh5 {[%clk 0:00:19]} 51. Rxa7 {[%clk 0:00:20]}  Rxh7 {[%clk 0:00:20]} 52. Kf3 {[%clk 0:00:20]}  Rh4 {[%clk 0:00:17]} 53. Ra5 {[%clk 0:00:20]}  Rb4 {[%clk 0:00:16]} 54. Rc5 {[%clk 0:00:20]}  Kg6 {[%clk 0:00:16]} 55. Ra5 {[%clk 0:00:20]}  f6 {[%clk 0:00:16]} 56. Rc5 {[%clk 0:00:21]}  f5 {[%clk 0:00:17]} 57. Rc8 {[%clk 0:00:21]}  Rb3+ {[%clk 0:00:16]} 58. Kf4 {[%clk 0:00:21]}  Rb4+ {[%clk 0:00:16]} 59. Kf3 {[%clk 0:00:21]}  Kf6 {[%clk 0:00:17]} 60. Rf8+ {[%clk 0:00:21]}  Ke6 {[%clk 0:00:17]} 61. Re8+ {[%clk 0:00:21]}  Kd6 {[%clk 0:00:17]} 62. Rf8 {[%clk 0:00:21]}  Ke5 {[%clk 0:00:18]} 63. Re8+ {[%clk 0:00:22]}  Kf6 {[%clk 0:00:18]} 64. Rf8+ {[%clk 0:00:22]}  Ke7 {[%clk 0:00:19]} 65. Rxf5 {[%clk 0:00:22]}  Rb3+ {[%clk 0:00:18]} 1/2-1/2


[Site "https://www.chess.com"]

[Event "Titled Tuesday Blitz August 10 2021"]
[White "Materia, Marco"]
[Black "Ibrahimli, Murad"]
[WhiteFideId "45150451"]
[BlackFideId "13410229"]
[WhiteElo "2686"]
[BlackElo "2109"]
[Result "0-1"]
[Round "08"]
[TimeControl "180+1"]
[Date "2021.08.10"]
[WhiteClock "0:00:01"]
[BlackClock "0:00:09"]

1. d4 {[%clk 0:03:00]}  d5 {[%clk 0:02:59]} 2. c4 {[%clk 0:03:00]}  c6 {[%clk 0:02:59]} 3. Nf3 {[%clk 0:02:59]}  Nf6 {[%clk 0:02:59]} 4. Nc3 {[%clk 0:03:00]}  a6 {[%clk 0:02:57]} 5. c5 {[%clk 0:02:57]}  Bf5 {[%clk 0:02:54]} 6. Bf4 {[%clk 0:02:54]}  Nbd7 {[%clk 0:02:53]} 7. h3 {[%clk 0:02:55]}  e6 {[%clk 0:02:51]} 8. e3 {[%clk 0:02:54]}  Be7 {[%clk 0:02:42]} 9. Be2 {[%clk 0:02:49]}  h6 {[%clk 0:02:38]} 10. b4 {[%clk 0:02:44]}  O-O {[%clk 0:02:34]} 11. O-O {[%clk 0:02:43]}  Ne4 {[%clk 0:02:33]} 12. Nxe4 {[%clk 0:02:41]}  Bxe4 {[%clk 0:02:34]} 13. Ne5 {[%clk 0:02:36]}  Nxe5 {[%clk 0:02:30]} 14. Bxe5 {[%clk 0:02:37]}  Bf6 {[%clk 0:02:30]} 15. Bd6 {[%clk 0:02:36]}  Be7 {[%clk 0:02:26]} 16. Bg3 {[%clk 0:02:31]}  Re8 {[%clk 0:02:26]} 17. Bd3 {[%clk 0:02:27]}  Bxd3 {[%clk 0:02:23]} 18. Qxd3 {[%clk 0:02:28]}  Bf6 {[%clk 0:02:23]} 19. f4 {[%clk 0:02:19]}  g6 {[%clk 0:01:59]} 20. a4 {[%clk 0:02:18]}  h5 {[%clk 0:01:55]} 21. b5 {[%clk 0:02:18]}  axb5 {[%clk 0:01:54]} 22. axb5 {[%clk 0:02:17]}  h4 {[%clk 0:01:55]} 23. Bf2 {[%clk 0:02:16]}  Kg7 {[%clk 0:01:44]} 24. Rfb1 {[%clk 0:02:12]}  Rxa1 {[%clk 0:01:25]} 25. Rxa1 {[%clk 0:02:12]}  b6 {[%clk 0:01:26]} 26. Ra6 {[%clk 0:02:02]}  bxc5 {[%clk 0:01:22]} 27. Rxc6 {[%clk 0:01:53]}  c4 {[%clk 0:01:17]} 28. Qa3 {[%clk 0:01:52]}  Qb8 {[%clk 0:00:57]} 29. Qa6 {[%clk 0:01:48]}  Re7 {[%clk 0:00:51]} 30. b6 {[%clk 0:01:47]}  Rb7 {[%clk 0:00:46]} 31. Be1 {[%clk 0:01:46]}  Bd8 {[%clk 0:00:45]} 32. Ba5 {[%clk 0:01:46]}  g5 {[%clk 0:00:32]} 33. f5 {[%clk 0:01:18]}  g4 {[%clk 0:00:26]} 34. hxg4 {[%clk 0:00:42]}  Qg3 {[%clk 0:00:21]} 35. f6+ {[%clk 0:00:17]}  Bxf6 {[%clk 0:00:16]} 36. Kf1 {[%clk 0:00:11]}  Rb8 {[%clk 0:00:12]} 37. b7 {[%clk 0:00:09]}  Qxe3 {[%clk 0:00:10]} 38. Bc7 {[%clk 0:00:08]}  Bxd4 {[%clk 0:00:09]} 39. Qa2 {[%clk 0:00:04]}  Rxb7 {[%clk 0:00:09]} 40. Ba5 {[%clk 0:00:02]}  Rb1+ {[%clk 0:00:08]} 41. Qxb1 {[%clk 0:00:01]}  Qf2# {[%clk 0:00:09]} 0-1


[Site "https://www.chess.com"]

[Event "Titled Tuesday Blitz August 10 2021"]
[White "Moroni, Luca Jr"]
[Black "Vlassov, Nikolai"]
[WhiteFideId "865834"]
[BlackFideId "4103360"]
[WhiteElo "2491"]
[BlackElo "2407"]
[Result "1/2-1/2"]
[Round "08"]
[TimeControl "180+1"]
[Date "2021.08.10"]
[WhiteClock "0:00:07"]
[BlackClock "0:00:15"]

1. d4 {[%clk 0:03:00]}  Nf6 {[%clk 0:02:58]} 2. c4 {[%clk 0:03:00]}  Nc6 {[%clk 0:02:58]} 3. Nf3 {[%clk 0:02:59]}  e6 {[%clk 0:02:57]} 4. Nc3 {[%clk 0:02:58]}  Bb4 {[%clk 0:02:55]} 5. Bg5 {[%clk 0:02:58]}  h6 {[%clk 0:02:53]} 6. Bh4 {[%clk 0:02:55]}  g5 {[%clk 0:02:53]} 7. Bg3 {[%clk 0:02:55]}  Ne4 {[%clk 0:02:53]} 8. Rc1 {[%clk 0:02:48]}  d5 {[%clk 0:02:53]} 9. e3 {[%clk 0:02:45]}  h5 {[%clk 0:02:53]} 10. h3 {[%clk 0:02:19]}  Bxc3+ {[%clk 0:02:51]} 11. bxc3 {[%clk 0:02:18]}  Nxg3 {[%clk 0:02:52]} 12. fxg3 {[%clk 0:02:19]}  Qd6 {[%clk 0:02:52]} 13. Kf2 {[%clk 0:02:19]}  h4 {[%clk 0:02:51]} 14. g4 {[%clk 0:02:08]}  Bd7 {[%clk 0:02:45]} 15. c5 {[%clk 0:02:02]}  Qg3+ {[%clk 0:02:43]} 16. Kg1 {[%clk 0:02:02]}  O-O-O {[%clk 0:02:41]} 17. Qe1 {[%clk 0:02:02]}  Qxe1 {[%clk 0:02:39]} 18. Rxe1 {[%clk 0:02:03]}  f6 {[%clk 0:02:39]} 19. Bd3 {[%clk 0:02:02]}  e5 {[%clk 0:02:38]} 20. Nd2 {[%clk 0:01:54]}  e4 {[%clk 0:02:30]} 21. Bc2 {[%clk 0:01:52]}  f5 {[%clk 0:02:29]} 22. gxf5 {[%clk 0:01:49]}  Bxf5 {[%clk 0:02:30]} 23. Kh2 {[%clk 0:01:42]}  g4 {[%clk 0:02:28]} 24. Rhf1 {[%clk 0:01:41]}  Rdf8 {[%clk 0:02:24]} 25. c4 {[%clk 0:01:36]}  Nb4 {[%clk 0:02:14]} 26. Bb1 {[%clk 0:01:24]}  c6 {[%clk 0:02:05]} 27. a3 {[%clk 0:01:17]}  Nd3 {[%clk 0:02:00]} 28. Bxd3 {[%clk 0:01:16]}  exd3 {[%clk 0:02:00]} 29. cxd5 {[%clk 0:01:15]}  cxd5 {[%clk 0:02:00]} 30. Rf4 {[%clk 0:01:15]}  Be6 {[%clk 0:01:47]} 31. Ref1 {[%clk 0:01:12]}  Rxf4 {[%clk 0:01:46]} 32. Rxf4 {[%clk 0:01:13]}  gxh3 {[%clk 0:01:44]} 33. gxh3 {[%clk 0:01:13]}  b6 {[%clk 0:01:36]} 34. Rf6 {[%clk 0:01:08]}  Kd7 {[%clk 0:01:35]} 35. Nf3 {[%clk 0:00:56]}  bxc5 {[%clk 0:01:33]} 36. dxc5 {[%clk 0:00:55]}  Rb8 {[%clk 0:01:23]} 37. Ne5+ {[%clk 0:00:55]}  Ke7 {[%clk 0:01:23]} 38. Rf2 {[%clk 0:00:51]}  Rb3 {[%clk 0:01:19]} 39. Ng6+ {[%clk 0:00:41]}  Kd8 {[%clk 0:01:16]} 40. Nf4 {[%clk 0:00:33]}  Kd7 {[%clk 0:01:04]} 41. Rd2 {[%clk 0:00:31]}  Bf5 {[%clk 0:00:53]} 42. Nxd5 {[%clk 0:00:31]}  Rxa3 {[%clk 0:00:53]} 43. e4 {[%clk 0:00:28]}  Bg6 {[%clk 0:00:46]} 44. c6+ {[%clk 0:00:26]}  Kxc6 {[%clk 0:00:39]} 45. Ne7+ {[%clk 0:00:25]}  Kc5 {[%clk 0:00:40]} 46. Nxg6 {[%clk 0:00:26]}  Kd4 {[%clk 0:00:39]} 47. Nxh4 {[%clk 0:00:21]}  Kxe4 {[%clk 0:00:38]} 48. Kg3 {[%clk 0:00:20]}  Ke3 {[%clk 0:00:38]} 49. Nf3 {[%clk 0:00:20]}  Ra6 {[%clk 0:00:33]} 50. Rd1 {[%clk 0:00:10]}  Rg6+ {[%clk 0:00:31]} 51. Kh4 {[%clk 0:00:10]}  Kxf3 {[%clk 0:00:26]} 52. Rxd3+ {[%clk 0:00:09]}  Kf4 {[%clk 0:00:22]} 53. Rd4+ {[%clk 0:00:07]}  Kf5 {[%clk 0:00:20]} 54. Ra4 {[%clk 0:00:08]}  Rg7 {[%clk 0:00:19]} 55. Ra5+ {[%clk 0:00:07]}  Kf4 {[%clk 0:00:18]} 56. Ra4+ {[%clk 0:00:07]}  Kf5 {[%clk 0:00:18]} 57. Ra6 {[%clk 0:00:07]}  Kf4 {[%clk 0:00:14]} 58. Ra4+ {[%clk 0:00:07]}  Kf5 {[%clk 0:00:15]} 1/2-1/2


[Site "https://www.chess.com"]

[Event "Titled Tuesday Blitz August 10 2021"]
[White "Nesterov, Arseniy"]
[Black "Plazuelo Pascual, Juan"]
[WhiteFideId "24198455"]
[BlackFideId "32059566"]
[WhiteElo "2477"]
[BlackElo "2330"]
[Result "1-0"]
[Round "08"]
[TimeControl "180+1"]
[Date "2021.08.10"]
[WhiteClock "0:00:08"]
[BlackClock "0:00:06"]

1. d4 {[%clk 0:03:00]}  Nf6 {[%clk 0:03:00]} 2. c4 {[%clk 0:03:01]}  g6 {[%clk 0:03:00]} 3. Nc3 {[%clk 0:03:00]}  Bg7 {[%clk 0:03:01]} 4. e4 {[%clk 0:03:01]}  O-O {[%clk 0:03:01]} 5. Be2 {[%clk 0:03:01]}  d6 {[%clk 0:03:01]} 6. Be3 {[%clk 0:03:02]}  c5 {[%clk 0:03:01]} 7. d5 {[%clk 0:03:02]}  e5 {[%clk 0:02:56]} 8. Nf3 {[%clk 0:02:58]}  Ne8 {[%clk 0:02:49]} 9. Nd2 {[%clk 0:02:51]}  f5 {[%clk 0:02:48]} 10. f3 {[%clk 0:02:51]}  Nd7 {[%clk 0:02:40]} 11. O-O {[%clk 0:02:50]}  f4 {[%clk 0:02:36]} 12. Bf2 {[%clk 0:02:50]}  g5 {[%clk 0:02:37]} 13. a3 {[%clk 0:02:49]}  Rf7 {[%clk 0:02:28]} 14. b4 {[%clk 0:02:48]}  b6 {[%clk 0:02:28]} 15. bxc5 {[%clk 0:02:47]}  dxc5 {[%clk 0:02:21]} 16. a4 {[%clk 0:02:45]}  a5 {[%clk 0:02:20]} 17. Rb1 {[%clk 0:02:43]}  Bf8 {[%clk 0:02:19]} 18. Qc2 {[%clk 0:02:36]}  Nd6 {[%clk 0:02:20]} 19. Nb5 {[%clk 0:02:31]}  Ba6 {[%clk 0:02:14]} 20. Nxd6 {[%clk 0:02:28]}  Bxd6 {[%clk 0:02:15]} 21. Rb2 {[%clk 0:02:27]}  Nf6 {[%clk 0:02:09]} 22. Rfb1 {[%clk 0:02:26]}  Rb8 {[%clk 0:02:09]} 23. Rb3 {[%clk 0:02:23]}  Ne8 {[%clk 0:02:08]} 24. Qb2 {[%clk 0:02:13]}  Rfb7 {[%clk 0:02:08]} 25. h3 {[%clk 0:02:12]}  Bc7 {[%clk 0:02:07]} 26. Nf1 {[%clk 0:02:10]}  Qe7 {[%clk 0:02:06]} 27. Be1 {[%clk 0:01:41]}  Nd6 {[%clk 0:02:06]} 28. Bc3 {[%clk 0:01:31]}  Nxc4 {[%clk 0:02:01]} 29. Qa2 {[%clk 0:01:25]}  Bd6 {[%clk 0:01:42]} 30. R3b2 {[%clk 0:01:14]}  b5 {[%clk 0:01:15]} 31. axb5 {[%clk 0:01:05]}  Nxb2 {[%clk 0:01:15]} 32. bxa6 {[%clk 0:01:03]}  Rb3 {[%clk 0:01:15]} 33. Rxb2 {[%clk 0:00:30]}  c4 {[%clk 0:00:32]} 34. Rc2 {[%clk 0:00:15]}  Qa7+ {[%clk 0:00:30]} 35. Kh2 {[%clk 0:00:15]}  Ra3 {[%clk 0:00:30]} 36. Qxc4 {[%clk 0:00:14]}  g4 {[%clk 0:00:16]} 37. fxg4 {[%clk 0:00:12]}  Qf2 {[%clk 0:00:14]} 38. Bd3 {[%clk 0:00:12]}  Qb6 {[%clk 0:00:08]} 39. Qc6 {[%clk 0:00:11]}  Qd8 {[%clk 0:00:04]} 40. a7 {[%clk 0:00:10]}  Ra8 {[%clk 0:00:03]} 41. Be1 {[%clk 0:00:07]}  Rxa7 {[%clk 0:00:03]} 42. Bb5 {[%clk 0:00:07]}  Rc7 {[%clk 0:00:03]} 43. Qb6 {[%clk 0:00:06]}  f3 {[%clk 0:00:01]} 44. gxf3 {[%clk 0:00:06]}  Rxf3 {[%clk 0:00:02]} 45. Ng3 {[%clk 0:00:06]}  Rf4 {[%clk 0:00:01]} 46. Rxc7 {[%clk 0:00:06]}  Qxc7 {[%clk 0:00:02]} 47. Qxc7 {[%clk 0:00:06]}  Bxc7 {[%clk 0:00:03]} 48. Nf5 {[%clk 0:00:07]}  Rxe4 {[%clk 0:00:03]} 49. d6 {[%clk 0:00:07]}  Rxe1 {[%clk 0:00:02]} 50. dxc7 {[%clk 0:00:07]}  Rc1 {[%clk 0:00:03]} 51. Ne7+ {[%clk 0:00:06]}  Kf7 {[%clk 0:00:04]} 52. c8=Q {[%clk 0:00:07]}  Rxc8 {[%clk 0:00:04]} 53. Nxc8 {[%clk 0:00:08]}  Ke6 {[%clk 0:00:05]} 54. Nb6 {[%clk 0:00:08]}  Kd6 {[%clk 0:00:05]} 55. Ba4 {[%clk 0:00:08]}  Kc5 {[%clk 0:00:06]} 56. Nd7+ {[%clk 0:00:08]}  Kb4 {[%clk 0:00:06]} 57. Bd1 {[%clk 0:00:09]}  a4 {[%clk 0:00:07]} 58. Bxa4 {[%clk 0:00:09]}  e4 {[%clk 0:00:06]} 59. Nf6 {[%clk 0:00:08]} 1-0


[Site "https://www.chess.com"]